Cogmind - Beta 10.2 @@@ ROGUE MODE // 2021.11.28 @ 11:35:49 Player: TheSlyFawkes Result: Self-destructed Performance ------------- Evolutions (2) 1000 Regions Visited (5) 1000 Robots Destroyed (21) 105 Value Destroyed (415) 415 Prototype IDs (3) 60 Alien Tech Used (0) 0 Bonus (0) 0 TOTAL SCORE: 2580 Bonus ------- None Cogmind --------- Core Integrity 472/550 Matter 199/300 Energy 125/125 System Corruption 0% Temperature Cool (0) Movement Flying (37) Location -8/Materials Parts ------- > --- POWER (2) -------- Light Ion Engine > --- PROPULSION (3) --- Xenon Bombardment Thruster Xenon Bombardment Thruster > --- UTILITY (4) ------ Experimental Sensor Array Improved Signal Interpreter > --- WEAPON (2) ------- Light Assault Rifle > --- INVENTORY (4) ---- Grenade Launcher Rocket Launcher Peak State ------------ > --- POWER ------------ Light Ion Engine Light Ion Engine > --- PROPULSION ------- Flight Unit Xenon Bombardment Thruster Xenon Bombardment Thruster > --- UTILITY ---------- Experimental Sensor Array Improved Signal Interpreter > --- WEAPON ----------- Light Assault Rifle Light Assault Rifle > --- INVENTORY -------- Flight Unit Grenade Launcher Rocket Launcher [Rating: 21] Favorites ----------- Power Light Ion Engine Engine Light Ion Engine Power Core Light Nuclear Core Propulsion Flight Unit Hover Unit Hover Unit Flight Unit Flight Unit Utility Signal Interpreter Device Heat Sink Processor Signal Interpreter Weapon Light Assault Rifle Ballistic Gun Light Assault Rifle Build | -11 -10 -10 -10 -9 -8 ------- Run | Scr Mat Min Exi Min Mat Slots Evolved 4 | . . . . . 4 Power 1 | . . . . . 1 Propulsion 1 | . . . . . 1 Utility 2 | . . . . . 2 Weapon . | . . . . . . Parts Attached 41 | 1 14 8 . 6 12 Power 7 | . 3 2 . 1 1 Engine 6 | . 3 1 . 1 1 Core 1 | . . 1 . . . Reactor . | . . . . . . Propulsion 18 | . 4 4 . 1 9 Treads . | . . . . . . Leg . | . . . . . . Wheel . | . . . . . . Hover 2 | . 2 . . . . Flight 16 | . 2 4 . 1 9 Utility 6 | . 2 . . 2 2 Device 3 | . 1 . . 1 1 Storage . | . . . . . . Processor 3 | . 1 . . 1 1 Hackware . | . . . . . . Protection . | . . . . . . Artifact . | . . . . . . Weapon 10 | 1 5 2 . 2 . Energy Gun . | . . . . . . Energy Cannon . | . . . . . . Ballistic Gun 10 | 1 5 2 . 2 . Ballistic Cannon . | . . . . . . Launcher . | . . . . . . Special Weapon . | . . . . . . Impact Weapon . | . . . . . . Slashing Weapon . | . . . . . . Piercing Weapon . | . . . . . . Special Melee Weapon . | . . . . . . Unidentified Prototypes 1 | . . . . 1 . Parts Lost 10 | . 2 3 . . 5 Power 2 | . . 1 . . 1 Propulsion 5 | . 1 1 . . 3 Utility 1 | . . 1 . . . Weapon 2 | . 1 . . . 1 Highest Loss Streak 4 | . 1 2 . . 4 Average Slot Usage (%) 79 | . 73 85 85 95 74 Engine 10 | . 12 4 . 10 15 Core 3 | . . 9 14 3 . Hover 1 | . 5 . . . . Flight 20 | . 8 26 28 28 25 Device 6 | . 10 3 . 5 7 Processor 11 | . 8 14 14 18 9 Ballistic Gun 24 | . 26 28 28 28 17 Naked Turns . | . . . . . . Heaviest Build 9 | 2 6 7 7 7 9 Greatest Support 15 | 3 12 8 8 8 15 Greatest Overweight (x) 1 | . 1 1 . . 1 Average Overweight (x) . | . . . . . . Largest Inventory Capacity 4 | 4 4 4 4 4 4 Average Capacity 4 | 4 4 4 4 4 4 Most Carried 4 | 4 4 4 4 4 4 Average Carried 3 | 2 3 3 4 3 3 Final Capacity 4 | 4 4 4 4 4 4 Final Carried 4 | 4 4 4 4 4 2 Class Distribution -------------------- 74% | Scavenger-Mutant 25% | Mutant Dominant Class ---------------- Mutant | -10/Materials Scavenger-Mutant | -10/Mines Scavenger-Mutant | -10/Exiles Scavenger-Mutant | -9/Mines Scavenger-Mutant | -8/Materials Resources | -11 -10 -10 -10 -9 -8 ----------- Run | Scr Mat Min Exi Min Mat Matter Collected 662 | 199 200 130 . 88 45 Remotely . | . . . . . . Salvage Created 535 | . 241 193 . 56 45 Parts 44 | . 21 12 . 5 6 Haulers Intercepted . | . . . . . . Recyclers Shooed . | . . . . . . Parts Field Recycled . | . . . . . . Retrieved Matter . | . . . . . . Parts Self-Destructed . | . . . . . . Prevented . | . . . . . . Kills | -11 -10 -10 -10 -9 -8 ------- Run | Scr Mat Min Exi Min Mat Combat Hostiles Destroyed 17 | . 7 7 . 3 . Guns 17 | . 7 7 . 3 . Classes Destroyed 4 | . 3 . . . 1 Builder 1 | . . . . . 1 Watcher 3 | . 2 . . . 1 Swarmer 11 | . 3 5 . 3 . Grunt 6 | . 4 2 . . . Best Kill Streak 3 | . 2 3 . 3 1 Combat Bots Only 3 | . 2 3 . 3 . Max Kills in Single Turn 1 | . 1 1 . 1 1 Gunslinging . | . . . . . . Exploded . | . . . . . . Melee . | . . . . . . Uniques/NPCs Destroyed . | . . . . . . Combat | -11 -10 -10 -10 -9 -8 -------- Run | Scr Mat Min Exi Min Mat Damage Taken 1178 | . 329 254 . 212 383 Core 303 | . 88 70 . 67 78 Absorbed by Shields . | . . . . . . Core Remaining (%) 55 | 100 . . . 10 . Volleys Fired 100 | . 38 21 . 14 27 Largest 2 | . 2 2 . 2 2 Hottest 40 | . 40 40 . 40 40 Shots Fired 184 | . 63 42 . 28 51 Gun 184 | . 63 42 . 28 51 Cannon . | . . . . . . Launcher . | . . . . . . Special . | . . . . . . Kinetic 184 | . 63 42 . 28 51 Thermal . | . . . . . . Explosive . | . . . . . . Electromagnetic . | . . . . . . Robot Hit Streak 13 | . 13 7 . 5 4 Robot Miss Streak 4 | . 4 3 . 4 3 Penetration Max . | . . . . . . Secondary Targets 4 | . 1 1 . 2 . Max Gunslinging Chain 1 | . 1 1 . 1 . Shots Hit Robots 107 | . 37 29 . 13 28 Core Hits 46 | . 22 13 . 5 6 Critical Hits 1 | . . . . . 1 Critical Kills 1 | . . . . . 1 Critical Parts Destroyed . | . . . . . . Melee Attacks . | . . . . . . Impact . | . . . . . . Slashing . | . . . . . . Piercing . | . . . . . . Sneak Attacks . | . . . . . . Combat Hostiles . | . . . . . . Follow-up Attacks . | . . . . . . Damage Inflicted 831 | . 332 214 . 86 199 Guns 831 | . 332 214 . 86 199 Cannons . | . . . . . . Explosions . | . . . . . . Melee . | . . . . . . Ramming . | . . . . . . Kinetic 831 | . 332 214 . 86 199 Thermal . | . . . . . . Explosive . | . . . . . . Electromagnetic . | . . . . . . Impact . | . . . . . . Slashing . | . . . . . . Piercing . | . . . . . . Highest Corruption . | . . . . . . Average Corruption . | . . . . . . Corruption Purged . | . . . . . . Overload Shots . | . . . . . . Overflow Damage . | . . . . . . Projectiles . | . . . . . . Explosions . | . . . . . . Melee . | . . . . . . Knockbacks . | . . . . . . Impact . | . . . . . . Kinetic . | . . . . . . Secondary . | . . . . . . Self-Inflicted Damage . | . . . . . . Shots . | . . . . . . Rammed . | . . . . . . Targets Rammed . | . . . . . . Kicked . | . . . . . . Crushed . | . . . . . . Highest Temperature 42 | . 8 42 . 16 24 Average Temperature 8 | . 3 12 . 8 7 Received Heat Transfer 324 | . 126 90 . . 108 Siege Activations . | . . . . . . Robots Corrupted . | . . . . . . Combat Hostiles . | . . . . . . Parts Fried . | . . . . . . Impact Corruptions . | . . . . . . Robots Melted . | . . . . . . Combat Hostiles . | . . . . . . Parts Melted . | . . . . . . Heat Transferred . | . . . . . . Parts Sabotaged . | . . . . . . Parts Stolen . | . . . . . . Parts Stripped . | . . . . . . Power Chain Reactions . | . . . . . . Missiles Intercepted . | . . . . . . Alert | -11 -10 -10 -10 -9 -8 ------- Run | Scr Mat Min Exi Min Mat Peak Influence 284 | . 284 187 . 60 160 Initial 32 | . . 32 . . 23 Average 102 | . 146 147 . 53 50 Maximum Alert Level 1 | . 1 . . . . Low Security (%) 91 | 100 75 100 . 100 100 Level 1 8 | . 24 . . . . Level 2 . | . . . . . . Level 3 . | . . . . . . Level 4 . | . . . . . . Level 5 . | . . . . . . High Security . | . . . . . . Max Security . | . . . . . . Squads Dispatched 3 | . 1 . . . 2 Investigation 1 | . 1 . . . . Extermination . | . . . . . . Reinforcement 2 | . . . . . 2 Assault . | . . . . . . Garrison . | . . . . . . Intercept . | . . . . . . Construction Impeded . | . . . . . . Haulers Reinforced . | . . . . . . Stealth | -11 -10 -10 -10 -9 -8 --------- Run | Scr Mat Min Exi Min Mat Distress Signals 7 | . 2 . . . 5 Communications Jammed . | . . . . . . Distress Signals . | . . . . . . Times Spotted 58 | . 16 7 . 4 31 Peak Tracking Total 17 | . 4 3 . 4 17 Tactical Retreats 6 | . 1 1 . . 4 Traps | -11 -10 -10 -10 -9 -8 ------- Run | Scr Mat Min Exi Min Mat Traps Triggered 2 | . 2 . . . . Indirectly . | . . . . . . Trap Hack Attempts . | . . . . . . Triggered . | . . . . . . Disarmed . | . . . . . . Reprogrammed . | . . . . . . Reused . | . . . . . . Traps Extracted . | . . . . . . Installed . | . . . . . . Triggered . | . . . . . . Machines | -11 -10 -10 -10 -9 -8 ---------- Run | Scr Mat Min Exi Min Mat Machines Disabled . | . . . . . . Max in Single Turn . | . . . . . . Machines Sabotaged . | . . . . . . Garrisons Compromised . | . . . . . . Overloaded Fab Kills . | . . . . . . Fab Network Shutdowns . | . . . . . . Hacking | -11 -10 -10 -10 -9 -8 --------- Run | Scr Mat Min Exi Min Mat Machines Accessed 7 | . 1 . 4 . 2 Terminals 2 | . 1 . . . 1 Fabricators . | . . . . . . Repair Stations 1 | . . . . . 1 Recycling Units . | . . . . . . Scanalyzers . | . . . . . . Garrison Access . | . . . . . . Total Hacks 11 | . 3 . 4 . 4 Successful 7 | . 1 . 4 . 2 Failed 4 | . 2 . . . 2 Catastrophic . | . . . . . . Database Lockouts . | . . . . . . Manual . | . . . . . . Terminals 4 | . 3 . . . 1 Fabricators . | . . . . . . Repair Stations 3 | . . . . . 3 Recycling Units . | . . . . . . Scanalyzers . | . . . . . . Garrison Access . | . . . . . . Terminal Hacks 5 | . 1 . 4 . . Record 4 | . . . 4 . . Prototype ID Bank 1 | . 1 . . . . Fabricator Hacks . | . . . . . . Repair Station Hacks 2 | . . . . . 2 Scan Component 1 | . . . . . 1 Repair 1 | . . . . . 1 Recycling Unit Hacks . | . . . . . . Scanalyzer . | . . . . . . Garrison Access Hacks . | . . . . . . Unauthorized Hacks . | . . . . . . Terminals . | . . . . . . Fabricators . | . . . . . . Repair Stations . | . . . . . . Recycling Units . | . . . . . . Scanalyzers . | . . . . . . Garrison Access . | . . . . . . Data Cores Recovered . | . . . . . . Used . | . . . . . . Hacking Detections 3 | . 1 . . . 2 Full Trace Events . | . . . . . . Feedback Events . | . . . . . . Feedback Blocked . | . . . . . . Robot Schematics Acquired . | . . . . . . Robots Built . | . . . . . . Matter . | . . . . . . Time . | . . . . . . Total Robot Build Rating . | . . . . . . Part Schematics Acquired . | . . . . . . Parts Built . | . . . . . . Matter . | . . . . . . Time . | . . . . . . Total Part Build Rating . | . . . . . . Parts Repaired 1 | . . . . . 1 Time 80 | . . . . . 80 Parts Recycled . | . . . . . . Recycled Matter . | . . . . . . Retrieved Matter . | . . . . . . Retrieved Components . | . . . . . . Parts Scanalyzed . | . . . . . . Part Schematics Acquired . | . . . . . . Parts Damaged . | . . . . . . Bothacking | -11 -10 -10 -10 -9 -8 ------------ Run | Scr Mat Min Exi Min Mat Used RIF Installer . | . . . . . . Robots Hacked . | . . . . . . Non-combat . | . . . . . . Combat . | . . . . . . Robot Hacks Applied . | . . . . . . Relay Couplers Released . | . . . . . . Robots Rewired . | . . . . . . Allies Hacked . | . . . . . . Hacks Repelled . | . . . . . . Allies | -11 -10 -10 -10 -9 -8 -------- Run | Scr Mat Min Exi Min Mat Total Allies . | . . . . . . Largest Group . | . . . . . . Highest-Rated Group . | . . . . . . Highest-Rated Ally . | . . . . . . Total Orders . | . . . . . . Ally Attacks . | . . . . . . Total Damage . | . . . . . . Kills . | . . . . . . Allies Corrupted . | . . . . . . Allies Melted . | . . . . . . Intel | -11 -10 -10 -10 -9 -8 ------- Run | Scr Mat Min Exi Min Mat Robot Analysis Total . | . . . . . . Derelict Logs Recovered 3 | . . 1 . 2 . Drone Launches . | . . . . . . Drone Recoveries . | . . . . . . Exploration | -11 -10 -10 -10 -9 -8 ------------- Run | Scr Mat Min Exi Min Mat Turns Passed 1655 | 27 523 279 179 201 446 Spaces Moved 2735 | 43 706 503 484 399 600 Core 207 | 43 159 5 . . . Treads . | . . . . . . Legs . | . . . . . . Wheels . | . . . . . . Hover 212 | . 212 . . . . Flight 2316 | . 335 498 484 399 600 Fastest Speed 34 | 50 37 37 37 37 34 Average Speed 41 | 50 54 38 37 37 36 Slowest Speed 120 | 50 120 120 37 37 120 Overloaded Moves . | . . . . . . Propulsion Burnouts . | . . . . . . Robots Hopped 17 | . 3 1 . 8 5 Cave-ins Triggered . | . . . . . . Exploration Rate (%) 62 | 3 97 66 92 78 36 Regions Visited 5 Branch Regions 3 Pre-discovered Areas 2 | . . 1 . 1 . Known Exits Taken 4 | . 1 1 1 1 . Unknown Exits Taken 1 | 1 . . . . . Scrap Searched 3 | . . 1 . 2 . Spaces Dug . | . . . . . . Terrain Destroyed . | . . . . . . Melee . | . . . . . . Projectile . | . . . . . . AOE . | . . . . . . Terrain Rammed . | . . . . . . Walls Destroyed . | . . . . . . Machines Disabled . | . . . . . . Actions | -11 -10 -10 -10 -9 -8 --------- Run | Scr Mat Min Exi Min Mat Total 3072 | 48 784 556 483 422 779 Wait 174 | . 16 14 . 3 141 Move 2698 | 42 700 500 483 383 590 Hop 15 | . 2 1 . 7 5 Pick Up 22 | 5 7 6 . 3 1 Fast Attach 15 | . 7 2 . 2 4 Attach 11 | 1 4 2 . 1 3 Detach 1 | . 1 . . . . Swap 15 | . 3 4 . 3 5 Drop 21 | . 6 6 . 6 3 Fire 100 | . 38 21 . 14 27 Melee . | . . . . . . Ram . | . . . . . . Kick . | . . . . . . Crush . | . . . . . . Escape Stasis . | . . . . . . Rewire . | . . . . . . Trap . | . . . . . . Miscellaneous . | . . . . . . Route ------- -11/Scrapyard -10/Materials (discovered 4 exits: *Mat x3 / *Min) -10/Mines (discovered 2 exits: Mat / *Exi) -10/Exiles (discovered 2 exits: *Min x2) -9/Mines -8/Materials History --------- Turn | Location | Event 8 | -11/Scrapyard | Discovered new exit (range 16) 28 | -11/Scrapyard | Entered Materials 157 | -10/Materials | Discovered new exit (range 8) 230 | -10/Materials | Identified exit to Materials 323 | -10/Materials | Discovered exit to Materials (range 15) 423 | -10/Materials | Discovered exit to Materials (range 16) 531 | -10/Materials | Discovered new exit (range 14) 550 | -10/Materials | Identified exit to Mines 551 | -10/Materials | Build established: Mutant 551 | -10/Materials | Entered Mines 615 | -10/Mines | Met a Derelict bent on vengeance 638 | -10/Mines | Core integrity fell below 50% 687 | -10/Mines | Learned location of Storage (-7) 751 | -10/Mines | Deemed a non-threat by the Exiles lab entrance 752 | -10/Mines | Discovered new exit (range 5) 792 | -10/Mines | A weapon hastily lodged in a ceiling crevice suddenly fell to the ground 830 | -10/Mines | Identified exit to Exiles 830 | -10/Mines | Entered Exiles 830 | -10/Exiles | Found Exiles lab abandoned 836 | -10/Exiles | Discovered new exit (range 15) 840 | -10/Exiles | Identified exit to Mines 868 | -10/Exiles | Build established: Scavenger-Mutant 1004 | -10/Exiles | Discovered exit to Mines (range 14) 1009 | -10/Exiles | Entered Mines 1028 | -9/Mines | Core integrity fell below 20% 1067 | -9/Mines | YI-UF0 nonchalantly dropped a Grenade Launcher on the ground 1083 | -9/Mines | Identified exit to Materials 1135 | -9/Mines | Found a damaged Exp. Sensor Array with a note attached 1136 | -9/Mines | Found Prototype Device 1136 | -9/Mines | Identified Exp. Sensor Array 1210 | -9/Mines | Entered Materials 1210 | -8/Materials | Evolved 4 slots: Power x1, Propulsion x1, Utility x2 1404 | -8/Materials | Repaired Exp. Sensor Array 1656 | -8/Materials | Self-destructed Last Messages --------------- W-25 Informer sends out distress signal. ALERT: Hostiles spotted, dispatching reinforcements to Terminal M005. K-01 Serf cleans the Terminal. W-25 Informer suffers critical hit. W-25 Informer destroyed. Acquired 31 matter. K-01 Serf collects debris. Flight Unit destroyed. W-25 Informer sends out distress signal. K-01 Serf cleans the Terminal. K-01 Serf cleans the Garrison Access. W-25 Informer sends out distress signal. ALERT: Hostiles spotted, dispatching reinforcements to Terminal M009. U-05 Engineer lays Concrete. Xenon Bombardment Thruster destroyed. Lgt. Assault Rifle destroyed. Lgt. Ion Engine destroyed. W-25 Informer sends out distress signal. Flight Unit destroyed. T-07 Excavator is excavating. Map ----- +----------------------------------------------------+ | | | | | | | | | | | | | | | | | | | | | | | | | | | | | | | | | ?????????????????????????????????????????????????? | | ?????????????????????????????????????????????????? | | ?????????????????????????????????????????????????? | | ?????????????????????????????????????????????????? | | ????????????????????????????##???????????????????? | | ???????????????????????????? ###########?????????? | | ???????????????????????????? +?????????? | | ???????????????????????????? #?????????? | | ???????????????"" "" ###### #?????????? | | ???????????????"" "" Y @ w ????????? | | ????????????? ####ss #####???????????????? | | ????????????# ?????????# #???????????????????? | | ?????????????????????????# #???????????????????? | | ?????????????????????????#w #???????????????????? | | ?????????????????????????# #???????????????????? | | ????????????????????????##w ##??????????????????? | | ????????????????????????# #??????????????????? | | ????????????????????????# #????????########### | | ????????????????????????# #????????# ## | | ????????????????????????# ! #????????# """ "" ## | | ????????????????????????# # ???????# """ T" / | | ????????????????????????### ### ???????# """ "" ## | | ???????????????## #####???# #?# ???????# ## | | ???????????????# ?## ###+#########+######## | | ???????????????# !!* # / | | ???????????????# !!* ] # # | | ???????????????# !* + # | | ??????????????????######## ########## # | | ????????????????????????## ########## # ? | | ????????????????????????# # / # ? | | ????????????????????????# # """##### # ?? | | ????????????????????????# / """????# ####?? | | ????????????????????????# # ! ""?????# #????? | | ????????????????????????# # ?????# #????? | +----------------------------------------------------+ Best States ------------- Heat Dissipation 35 Energy Generation 15 Energy Capacity 160 Matter Stores 300 Matter Capacity 300 Sight Range 16 Robot Scan Range 30 Terrain Scan Density 10 Evasion (%) 63 Targeting Accuracy 5 Item Schematics ----------------- None Robot Schematics ------------------ None Fabricated ------------ Nothing Alien Tech Used ----------------- None Achievements -------------- I Spy Challenges ------------ None Game ------ Seed DeepMobileCloak Manual? 0 Play Time 00:36:21 Cumulative 15.0 hours Start 2021.11.28 @ 10:57:43 End 2021.11.28 @ 11:35:49 Sessions 1 Manual Loads 0 Difficulty Rogue Special Mode None Game No. 20 Rogue 19 Adventurer 1 Explorer 0 Win Type - Total 0 Types 0/0/0/0/0/0/0/0/0 Lore% 19 Gallery% 16 Achievement% 21 Wizard Run 0 Options --------- ASCII 0 Keyboard 0 Movement Mouse Keybinds 0 Fullscreen 1 Font 18/SmallcapsGlow Map View 76x50 Tactical HUD 0 Map Filters NONE Filters NONE Steam 1 RUN: 5aab12ae-b8f8-4e28-9bca-7ccd11ac466c